bitfinex-derivatives/quotes_ETHF0:USTF0_20241228
["timestamp","ask_amount","ask_price","bid_price","bid_amount"]
[1735401399763,0.49841657,3369.6,3369.5,3.50511]
[1735401400159,0.06061657,3369.6,3369.5,3.50511]
[1735401401869,0.06061657,3369.6,3369.5,44.30511]
[1735401403269,0.04078271,3369.6,3369.5,49.30511]
[1735401403562,0.08146509,3369.6,3369.5,49.30511]
[1735401403866,3.2078,3371.1,3371.0,0.29719]
[1735401404065,0.29719,3371.0,3370.9,0.29719]
[1735401405570,0.2972,3370.9,3370.8,0.2972]
[1735401406965,0.29719,3371.0,3370.9,0.29719]
[1735401407759,3.2078,3371.1,3370.4,5.1669]
[1735401407760,0.2972,3370.9,3370.8,0.2972]
[1735401408466,3.50499,3371.1,3371.0,0.29719]
[1735401408666,0.29719,3371.0,3370.9,0.29719]
[1735401409668,3.2078,3371.1,3370.5,0.74307]
[1735401409857,0.29717,3371.2,3370.5,0.74307]
[1735401410164,0.8567,3371.4,3371.2,0.29717]
[1735401410165,0.29717,3371.3,3371.2,0.29717]
[1735401410364,1.15386,3371.4,3371.3,0.29716]
[1735401411569,1.1747013,3371.4,3371.3,0.29716]
[1735401411774,0.8775413,3371.4,3371.3,0.29716]
[1735401413071,0.0208413,3371.4,3371.3,0.29716]
[1735401413662,0.3179913,3371.4,3371.3,41.09716]
[1735401414072,0.0208413,3371.4,3371.3,41.09716]
[1735401414375,0.0208413,3371.4,3370.6,3.2078]
[1735401414568,0.3180413,3371.0,3370.9,0.29719]
[1735401414764,0.0208413,3371.0,3370.9,0.29719]
[1735401415172,0.04067595,3371.0,3370.6,44.0078]
[1735401415376,0.29721,3370.9,3370.8,0.2972]
[1735401415874,0.33786595,3371.0,3370.9,0.2972]
[1735401416075,0.04067595,3371.0,3370.9,0.2972]
[1735401416274,0.04067595,3371.0,3370.6,44.0078]
[1735401416672,0.29721,3370.7,3370.6,44.30501]
[1735401417077,0.29721,3370.8,3370.7,0.29721]
[1735401417272,0.04067595,3370.8,3370.7,0.29721]
[1735401418977,0.04067595,3370.8,3370.7,46.09721]
[1735401419377,0.4509,3371.4,3371.3,0.29716]
[1735401420181,0.4509,3371.4,3371.3,41.09716]
[1735401420975,0.47164795,3371.4,3371.3,41.09716]
[1735401421280,0.76879795,3371.4,3371.3,40.8]
[1735401421581,0.76879795,3371.4,3371.3,0.29716]
[1735401421984,0.76879795,3371.4,3371.3,41.09716]
[1735401422177,0.76879795,3371.4,3371.3,40.8]
[1735401422377,0.76879795,3371.4,3371.3,41.09716]
[1735401422575,0.76879795,3371.4,3371.3,40.8]
[1735401422978,0.76879795,3371.4,3371.3,41.09716]
[1735401423584,0.47164795,3371.4,3371.3,41.09716]
[1735401423789,0.76879795,3371.4,3371.3,41.09716]
[1735401427783,0.76879795,3371.4,3371.3,40.8]
[1735401428086,0.29719,3371.1,3371.0,0.29718]
[1735401428283,0.29721,3370.8,3370.7,0.2972]
[1735401428481,0.29721,3370.8,3370.7,41.0972]
[1735401429088,0.31795795,3370.8,3370.7,41.0972]
[1735401429285,0.31795795,3370.8,3370.7,40.8]
[1735401430883,0.31795795,3370.8,3370.7,41.09721]
[1735401431083,0.31795795,3370.8,3370.7,40.8]
[1735401431383,0.29726,3370.2,3370.1,3.50505]
[1735401431784,0.29726,3370.2,3370.1,44.30505]
[1735401431984,0.31800795,3370.2,3370.1,44.30505]
[1735401432492,0.31800795,3370.2,3370.1,40.8]
[1735401432992,1.63940795,3370.2,3370.1,40.8]
[1735401433983,6.34214795,3370.2,3369.0,4.66581308]
[1735401434188,3.50515,3369.1,3369.0,4.66581308]
[1735401434486,3.50515,3369.1,3369.0,40.8]
[1735401434688,9.88503702,3369.1,3368.7,4.66581308]
[1735401434894,1.97461702,3368.8,3368.7,2.29746509]
[1735401435093,0.31812795,3368.8,3368.7,2.29746509]
[1735401435288,0.31812795,3368.8,3368.7,5.26546509]
[1735401435688,0.02074795,3368.8,3368.7,46.06546509]
[1735401436089,0.02074795,3368.8,3368.7,43.768]
[1735401436587,0.02074795,3368.8,3368.7,44.06539]
[1735401438291,0.02074795,3368.8,3368.7,43.768]
[1735401438292,0.31812795,3368.8,3368.7,43.768]
[1735401439290,0.02074795,3368.8,3368.7,43.768]
[1735401439587,0.02074795,3368.8,3368.7,44.06539]
[1735401439894,0.31812795,3368.8,3368.7,43.768]
[1735401445689,1.69798497,3368.8,3368.1,3.2078]
[1735401445996,0.29742,3368.3,3368.2,2.968]
[1735401446191,0.29742,3368.3,3368.2,43.768]
[1735401447192,0.31816795,3368.3,3368.2,40.8]
[1735401447895,0.29746,3367.9,3367.8,0.29746]
[1735401448097,0.31820795,3367.9,3367.8,0.29746]
[1735401448403,0.31820795,3367.9,3367.8,50.00226]
[1735401448697,0.02074795,3367.9,3367.8,50.00226]
[1735401449493,0.8647,3368.5,3367.8,45.44523702]
[1735401449698,0.4352,3368.7,3368.5,2.968]
[1735401449899,0.4352,3368.7,3368.6,3.2654]
[1735401450199,3.2078,3368.9,3368.8,0.29738]
[1735401450402,3.2078,3368.9,3368.8,5.11403205]
[1735401450593,3.2078,3368.9,3368.8,45.91403205]
[1735401450903,0.29734,3369.3,3369.2,0.29734]
[1735401451202,0.29731,3369.6,3369.5,0.29732]
[1735401451500,0.29727,3370.1,3370.0,2.968]
[1735401451703,1.18896,3370.2,3369.9,2.968]
[1735401451896,1.97450702,3370.0,3369.9,2.968]
[1735401452094,1.67723702,3370.0,3369.5,3.2078]
[1735401452296,0.29731,3369.6,3369.5,2.968]
[1735401452606,0.29731,3369.6,3369.5,6.1758]
[1735401452904,0.29731,3369.6,3369.5,2.968]
[1735401455499,0.4382,3369.8,3369.4,3.2078]
[1735401455804,0.29736,3369.1,3369.0,0.29736]
[1735401456005,1.17241,3369.5,3369.1,2.968]
[1735401456307,0.29734,3369.2,3369.1,2.968]
[1735401456807,0.29734,3369.2,3369.1,6.47315]
[1735401457107,0.29734,3369.3,3369.2,0.29733]
[1735401457307,0.72642,3369.5,3369.4,3.26533]
[1735401457506,0.72642,3369.5,3369.4,2.968]
[1735401458012,0.29732,3369.5,3369.4,5.11398205]
[1735401458206,0.29732,3369.5,3369.4,4.81665205]
[1735401458405,0.29732,3369.5,3369.4,5.11398205]
[1735401458605,0.29732,3369.5,3369.4,1.84865205]
[1735401459207,0.29732,3369.5,3369.4,4.81665205]
[1735401461203,1.67723702,3369.7,3369.0,1.84865205]
[1735401461406,0.29733,3369.4,3369.3,2.968]
[1735401462310,1.97456702,3369.4,3369.3,2.968]
[1735401462909,0.29738,3368.8,3368.7,3.2078]
[1735401463314,0.29738,3368.8,3368.7,8.02445205]
[1735401463608,0.29738,3368.8,3368.7,48.82445205]
[1735401464209,0.29738,3368.8,3368.7,44.0078]
[1735401464509,0.29738,3368.8,3368.7,6.1758]
[1735401465420,0.29738,3368.8,3368.7,6.47319]
[1735401465628,0.4374,3369.3,3368.7,6.1758]
[1735401465820,0.29736,3369.1,3369.0,0.29735]
[1735401466321,0.29736,3369.1,3369.0,5.11400205]
[1735401467222,0.29736,3369.1,3369.0,4.81665205]
[1735401468425,0.29736,3369.1,3369.0,5.11401205]
[1735401470127,0.29736,3369.1,3369.0,4.81665205]
[1735401470431,0.29736,3369.1,3369.0,5.11401205]
[1735401472223,0.29734,3369.2,3369.1,0.29734]
[1735401472526,0.29731,3369.7,3369.6,0.29729]
[1735401472721,0.29731,3369.7,3369.6,3.26529]
[1735401472922,0.29731,3369.7,3369.6,5.11394205]
[1735401473119,0.29731,3369.7,3369.6,45.61665205]
[1735401473326,0.29731,3369.7,3369.6,45.91396205]
[1735401473626,0.29731,3369.7,3369.6,45.61665205]
[1735401474219,0.29731,3369.7,3369.6,45.91396205]
[1735401476423,0.2973,3369.8,3369.7,0.29729]
[1735401476634,0.73769,3369.9,3369.8,3.26529]
[1735401477529,0.29729,3369.9,3369.8,3.26529]
[1735401477723,0.29729,3369.9,3369.8,2.968]
[1735401478622,0.29729,3369.9,3369.6,42.64865205]
[1735401478623,0.4578,3370.2,3369.6,1.84865205]
[1735401478828,0.2973,3369.7,3369.6,1.84865205]
[1735401479229,0.2973,3369.7,3369.6,4.81665205]
[1735401483032,0.29734,3369.2,3369.1,3.2078]
[1735401483332,0.29734,3369.2,3369.1,44.0078]
[1735401483525,0.29734,3369.2,3369.1,48.82445205]
[1735401484528,0.29734,3369.2,3369.1,45.91400205]
[1735401485021,0.29734,3369.2,3369.1,45.61665205]
[1735401497036,0.29734,3369.2,3369.1,1.84865205]
[1735401497333,5.1255879,3369.4,3368.9,3.2078]
[1735401497334,0.29736,3369.0,3368.9,3.2078]
[1735401497538,0.29736,3369.0,3368.9,3.50517]
[1735401497730,0.29736,3369.0,3368.9,8.32182205]
[1735401498331,0.75416,3369.0,3368.9,8.32182205]
[1735401498533,0.75416,3369.0,3368.9,49.12182205]
[1735401499440,0.75416,3369.0,3368.9,44.0078]
[1735401500540,0.75416,3369.0,3368.9,3.2078]
[1735401501132,11.08526702,3369.0,3368.5,10.20651962]
[1735401501435,0.2974,3368.6,3368.5,3.2078]
[1735401502441,0.29741,3368.4,3368.3,0.049]
[1735401508536,0.29741,3368.4,3368.3,43.817]
[1735401508740,0.29741,3368.4,3368.3,44.11442]
[1735401508941,0.29741,3368.4,3368.3,43.817]
[1735401510240,3.47603708,3368.8,3368.3,45.49423702]
[1735401510445,1.92478503,3368.8,3368.7,6.47319]
[1735401510838,0.29736,3369.1,3368.7,6.47319]
[1735401510839,4.59878355,3369.1,3369.0,0.29736]
[1735401511043,4.59878355,3369.1,3369.0,4.94259702]
[1735401511244,4.59878355,3369.1,3369.0,45.74259702]
[1735401511943,4.89613355,3369.1,3369.0,45.74259702]
[1735401512249,4.89613355,3369.1,3369.0,43.768]
[1735401512447,0.29735,3369.1,3369.0,43.768]
[1735401514946,0.29735,3369.1,3369.0,2.968]
[1735401516745,0.2974,3368.5,3368.4,1.67723702]
[1735401516948,1.64291,3369.0,3368.7,2.968]
[1735401517441,0.29738,3368.8,3368.7,2.968]
[1735401517642,0.29738,3368.8,3368.2,10.50393962]
[1735401517643,0.29741,3368.4,3368.2,10.50393962]
[1735401518144,0.29741,3368.4,3368.3,3.017]
[1735401518451,0.29741,3368.4,3368.3,43.817]
[1735401525254,0.29741,3368.4,3368.3,44.11442]
[1735401528056,0.29741,3368.4,3368.3,43.817]
[1735401528455,0.29741,3368.4,3368.3,44.11442]
[1735401529250,0.29741,3368.4,3368.3,43.817]
[1735401529556,0.29741,3368.4,3368.3,44.11442]
[1735401531159,0.29741,3368.4,3368.3,43.817]
[1735401533663,0.29746,3367.9,3367.8,3.2078]
[1735401533956,0.29746,3367.9,3367.8,6.1758]
[1735401534162,0.29746,3367.9,3367.8,47.27327]
[1735401542563,0.29746,3368.1,3368.0,0.29744]
[1735401542962,0.29746,3368.1,3368.0,3.26544]
[1735401543157,0.29746,3368.1,3368.0,44.06544]
[1735401543962,0.29743,3368.3,3368.2,0.29742]
[1735401544465,0.29743,3368.3,3368.2,3.26542]
[1735401545263,0.29743,3368.3,3368.2,2.968]
[1735401546161,2.60997251,3368.3,3368.2,2.968]
[1735401548465,0.29744,3368.1,3368.0,40.8]
[1735401549266,0.29744,3368.1,3368.0,43.768]
[1735401552761,0.29744,3368.1,3368.0,2.968]
[1735401553169,0.29744,3368.1,3368.0,43.768]
[1735401556074,2.61393612,3368.1,3368.0,43.768]
[1735401560076,0.29744,3368.1,3368.0,43.768]
[1735401562282,0.29744,3368.1,3368.0,44.48845]
[1735401562581,2.6168948,3368.1,3368.0,44.48845]
[1735401562783,2.3194548,3368.1,3368.0,44.48845]
[1735401563375,7.80658355,3368.4,3368.3,0.29742]
[1735401563576,4.59878355,3368.4,3368.3,8.15045702]
[1735401564880,4.89619355,3368.4,3368.3,46.9758]
[1735401565177,4.89619355,3368.4,3368.3,52.45183933]
[1735401565178,0.29741,3368.4,3368.3,52.45183933]
[1735401566485,0.29741,3368.4,3368.3,59.46735913]
[1735401568180,0.29741,3368.4,3368.3,51.94947896]
[1735401572589,0.29741,3368.4,3368.3,47.27322]
[1735401573584,0.29741,3368.4,3368.3,44.06542]
[1735401574888,0.29741,3368.4,3368.3,48.74167896]
[1735401575987,0.29741,3368.4,3368.3,44.06542]
[1735401578890,0.29741,3368.4,3368.3,49.24091675]
[1735401580192,0.29741,3368.4,3368.3,48.94349675]
[1735401580392,0.29741,3368.4,3368.3,48.44178453]
[1735401584799,0.29741,3368.4,3368.3,43.768]
[1735401585502,0.29741,3368.4,3368.3,44.06541]
[1735401585796,0.29741,3368.4,3368.3,44.50986552]
[1735401586197,0.74347,3368.8,3368.3,49.68319462]
[1735401586396,0.29736,3368.8,3368.7,6.47317]
[1735401586592,3.47781516,3369.1,3368.7,6.1758]
[1735401586797,3.47781516,3369.1,3369.0,4.00721552]
[1735401586997,3.47781516,3369.1,3369.0,44.80721552]
[1735401587793,3.47781516,3369.1,3369.0,45.63173845]
[1735401588001,3.47781516,3369.1,3369.0,50.80506755]
[1735401588002,0.29734,3369.1,3369.0,50.80506755]
[1735401589201,0.29734,3369.1,3369.0,50.30001159]
[1735401590201,0.29734,3369.2,3369.1,0.29732]
[1735401590398,0.29734,3369.2,3369.1,3.50512]
[1735401590600,0.29734,3369.2,3369.1,6.47312]
[1735401590997,0.29733,3369.3,3369.2,0.29732]
[1735401591197,0.8859,3369.7,3369.1,6.1758]
[1735401591198,0.2973,3369.6,3369.5,0.29729]
[1735401591399,0.75119,3369.7,3369.6,3.26529]
[1735401591694,0.75119,3369.7,3369.6,44.06529]
[1735401592507,0.75119,3369.7,3369.6,43.768]
[1735401593707,0.75119,3369.7,3369.6,44.06529]
[1735401596307,0.75119,3369.7,3369.6,43.768]
[1735401596702,0.75119,3369.7,3369.6,2.968]
[1735401599411,0.75119,3369.7,3369.6,43.768]
[1735401600617,0.75119,3369.7,3369.6,40.8]
[1735401606021,0.75119,3369.7,3369.6,41.09729]
[1735401607926,0.4539,3369.7,3369.6,41.09729]
[1735401608220,0.8803,3370.0,3369.9,0.29727]
[1735401608817,0.8803,3370.0,3369.9,41.09727]
[1735401609018,1.17756,3370.0,3369.9,41.09727]
[1735401609218,1.17756,3370.0,3369.9,40.8]
[1735401610925,1.17756,3370.0,3369.9,41.09727]
[1735401611124,1.17756,3370.0,3369.9,40.8]
[1735401611320,1.17756,3370.0,3369.9,41.09727]
[1735401611624,1.17756,3370.0,3369.9,44.06527]
[1735401612326,1.17756,3370.0,3369.9,47.27307]
[1735401612714,1.17756,3370.0,3369.9,46.9758]
[1735401612920,0.29729,3369.6,3369.5,3.2078]
[1735401613230,0.2973,3369.5,3369.4,2.2677]
[1735401613529,0.2973,3369.5,3369.4,43.0677]
[1735401614421,0.2973,3369.5,3369.4,40.8]
[1735401615124,0.29735,3369.0,3368.3,5.40037973]
[1735401615326,0.29734,3369.1,3368.9,2.2677]
[1735401615629,0.29735,3369.0,3368.9,1.5674]
[1735401616028,0.2974,3368.4,3368.3,4.65685973]
[1735401616226,0.2974,3368.4,3368.3,45.75426973]
[1735401617024,0.2974,3368.4,3368.3,4.65685973]
[1735401617222,3.95121,3368.9,3368.2,3.2078]
[1735401617429,0.29739,3368.5,3368.4,0.29739]
[1735401617629,3.2078,3368.8,3368.1,0.29742]
[1735401617930,0.29739,3368.5,3368.4,40.8]
[1735401620823,1.336,3368.8,3368.4,40.8]
[1735401621026,3.46486453,3369.2,3369.1,0.29734]
[1735401621226,4.44863871,3369.4,3369.3,0.29732]
[1735401621727,4.44863871,3369.4,3369.3,46.09732]
[1735401621930,3.74843871,3369.4,3369.3,46.09732]
[1735401622132,0.04843871,3369.4,3369.3,46.09732]
[1735401622334,0.04843871,3369.4,3369.3,41.09732]
[1735401622836,0.29724,3370.3,3369.5,0.74325]
[1735401623129,3.6449,3370.9,3370.1,3.2078]
[1735401623331,3.95065,3371.4,3370.1,3.2078]
[1735401623534,0.75147,3371.0,3370.8,0.29719]
[1735401623935,5.77477423,3371.5,3370.7,3.2078]
[1735401624134,5.77477423,3371.5,3371.3,3.48415375]
[1735401624135,0.29713,3371.5,3371.3,3.48415375]
[1735401624336,5.77477423,3371.6,3371.5,0.29713]
[1735401624832,5.77477423,3371.6,3371.4,0.4296]
[1735401625038,6.07189423,3371.6,3371.5,40.8]
[1735401625232,6.09178274,3371.6,3371.5,40.8]
[1735401625437,0.31700851,3371.6,3371.5,40.8]
[1735401625625,0.01988851,3371.6,3371.5,40.8]
[1735401625826,0.01988851,3371.6,3371.5,41.09713]
[1735401626036,0.01988851,3371.6,3371.5,40.8]
[1735401626339,0.31700851,3371.6,3371.5,40.8]
[1735401627840,0.01988851,3371.6,3371.5,41.09713]
[1735401629637,0.01988851,3371.6,3371.5,0.29713]
[1735401630137,0.01988851,3371.6,3371.5,41.09713]
[1735401630930,0.01988851,3371.6,3371.5,44.30493]
[1735401631743,0.31700851,3371.6,3371.5,3.2078]
[1735401633838,0.01988851,3371.6,3371.5,4.77190916]
[1735401634047,0.01988851,3371.6,3371.5,5.06902916]
[1735401634745,0.01988851,3371.6,3371.5,45.86902916]
[1735401639143,3.2078,3372.3,3372.2,0.29707]
[1735401639345,3.6506,3373.1,3372.2,4.77190916]
[1735401639547,3.6506,3373.1,3372.7,1.56410916]
[1735401639742,0.29704,3372.5,3372.4,1.56410916]
[1735401640046,0.29704,3372.5,3372.4,42.36410916]
[1735401640841,0.29704,3372.5,3372.4,42.66115916]
[1735401641142,0.29704,3372.5,3372.4,42.36410916]
[1735401641337,0.29704,3372.5,3372.4,40.8]
[1735401641542,0.29706,3372.3,3372.2,3.2078]
[1735401641734,0.29709,3371.9,3371.8,1.56410916]
[1735401641940,0.29711,3371.7,3371.6,3.2078]
[1735401642842,0.29711,3371.7,3371.3,40.8]
[1735401642843,0.29714,3371.4,3371.3,40.8]
[1735401643942,0.4311,3371.6,3371.3,40.8]
[1735401644243,3.2078,3372.1,3371.5,1.56410916]
[1735401644546,0.2971,3371.9,3371.8,0.29709]
[1735401644748,0.2971,3371.9,3371.8,1.86119916]
[1735401645039,0.4331,3372.3,3371.8,1.86119916]
[1735401645040,0.4331,3372.3,3371.8,1.56410916]
[1735401645245,0.4331,3372.3,3372.2,1.56410916]
[1735401645451,0.73016,3372.3,3372.2,1.56410916]
[1735401645741,0.29708,3372.0,3371.9,1.56410916]
[1735401646045,0.29708,3372.0,3371.9,42.66119916]
[1735401646742,3.2078,3372.0,3371.0,1.56410916]
[1735401646948,0.29719,3370.8,3370.7,1.56410916]
[1735401647244,0.29719,3370.8,3370.7,42.36410916]
[1735401649150,3.2078,3371.0,3370.4,1.56410916]
[1735401649346,0.29722,3370.5,3370.4,1.86132916]
[1735401649848,0.29722,3370.5,3370.4,42.66132916]
[1735401651140,0.29722,3370.5,3370.4,42.36410916]
[1735401651851,3.2078,3371.0,3369.9,1.202]
[1735401651852,0.29726,3370.0,3369.9,3.2078]
[1735401652247,0.4275,3370.4,3369.4,1.56410916]
[1735401652248,0.2973,3369.5,3369.4,1.56410916]
[1735401652846,0.2973,3369.5,3369.4,42.36410916]
[1735401656152,0.2973,3369.5,3369.4,40.8]
[1735401662660,0.29737,3368.7,3368.6,0.74588]
[1735401662849,0.74329,3369.4,3368.6,0.4485]
[1735401663052,3.2078,3369.5,3368.8,1.56410916]
[1735401663253,3.50511,3369.5,3369.4,1.86141916]
[1735401663450,3.50511,3369.5,3369.4,1.56410916]
[1735401663848,3.2078,3369.5,3369.4,40.8]
[1735401664156,3.5051,3369.5,3369.4,40.8]
[1735401666056,0.2973,3369.5,3369.4,40.8]
[1735401666254,0.29729,3369.8,3369.7,0.29728]
[1735401666456,3.6406,3370.4,3369.7,4.77190916]
[1735401666661,0.29724,3370.3,3370.2,3.50503]
[1735401666859,0.29724,3370.3,3370.2,0.29723]
[1735401667153,3.2078,3370.6,3370.1,1.56410916]
[1735401667356,0.29722,3370.6,3370.5,1.56410916]
[1735401668061,0.29722,3370.6,3370.5,40.8]
[1735401668655,0.29722,3370.6,3370.5,41.52172]
[1735401668859,0.2972,3370.7,3370.6,0.2972]
[1735401669057,0.29721,3370.6,3370.5,43.08581916]
[1735401671262,1.1889,3371.2,3370.5,42.78860916]
[1735401671466,0.2972,3370.7,3370.6,0.2972]
[1735401671664,0.2972,3370.7,3370.6,3.505]
[1735401671864,0.2972,3370.7,3370.6,3.2078]
[1735401673261,0.29726,3370.0,3369.9,1.86136916]
[1735401673471,0.29726,3370.0,3369.9,1.98580916]
[1735401673672,0.29726,3370.0,3369.9,2.28307916]
[1735401673964,0.29726,3370.0,3369.9,43.08307916]
[1735401674671,0.29726,3370.0,3369.9,41.2217]
[1735401674971,0.29726,3370.0,3369.9,40.8]
[1735401676666,0.29726,3370.1,3370.0,0.29725]
[1735401678271,0.29726,3370.1,3370.0,40.8]
[1735401681273,0.29725,3370.3,3370.2,0.29724]
[1735401681571,0.4599,3370.6,3370.2,1.56410916]
[1735401681775,3.6719,3371.1,3370.5,1.56410916]
[1735401681971,0.2972,3370.8,3370.7,3.50499]
[1735401682166,0.29719,3370.9,3370.8,0.29718]
[1735401682475,0.29717,3371.1,3371.0,0.29717]
[1735401682887,0.29717,3371.1,3371.0,41.09717]
[1735401686371,0.29717,3371.1,3371.0,44.30497]
[1735401687479,0.29715,3371.4,3371.3,0.29714]
[1735401688179,0.29713,3371.5,3371.4,0.29713]
[1735401688575,3.50491,3371.8,3371.7,0.29711]
[1735401688776,3.2078,3371.8,3371.7,1.86121916]
[1735401688980,0.29706,3372.3,3371.8,0.74276]
[1735401689178,0.29706,3372.3,3372.1,1.86118916]
[1735401689480,0.29706,3372.3,3372.1,42.66118916]
[1735401689984,0.29706,3372.3,3372.2,0.29707]
[1735401693382,3.2078,3372.5,3371.8,1.56410916]
[1735401693686,0.29709,3371.9,3371.8,1.56410916]
[1735401694089,1.17918,3372.2,3371.7,3.2078]
[1735401694284,0.2971,3371.8,3371.7,3.2078]
[1735401696987,3.6385,3372.1,3371.3,44.0078]
[1735401697292,0.29714,3371.4,3371.3,3.2078]
[1735401697793,0.29714,3371.4,3371.3,44.0078]
[1735401698394,0.29714,3371.4,3371.3,40.8]
[1735401698586,0.29717,3371.0,3370.9,0.74468]
[1735401698992,0.29717,3371.0,3370.9,41.54468]
[1735401700792,3.6313,3371.6,3370.9,41.2475]
[1735401700988,0.29713,3371.6,3371.5,0.29712]
[1735401701185,4.3812,3372.1,3371.7,0.2971]
[1735401701186,0.29711,3371.8,3371.7,0.2971]
[1735401701398,0.29709,3372.0,3371.9,0.29709]
[1735401701989,0.29709,3372.0,3371.9,3.50489]
[1735401702188,0.29709,3372.0,3371.9,3.2078]
[1735401702387,0.29709,3372.0,3371.9,3.50489]
[1735401702588,0.29709,3372.0,3371.9,3.2078]
[1735401705292,0.29709,3372.0,3371.9,44.0078]
[1735401705484,0.29709,3372.0,3371.9,3.2078]
[1735401706896,0.29707,3372.3,3372.2,0.29706]
[1735401707887,0.29707,3372.3,3372.2,41.09706]
[1735401708495,0.4205,3372.6,3372.2,40.8]
[1735401708693,0.4205,3372.6,3372.3,0.29705]
[1735401708694,0.29706,3372.4,3372.3,0.29705]
[1735401708893,0.29706,3372.4,3372.3,0.73845]
[1735401709898,0.29705,3372.5,3372.4,0.29704]
[1735401710094,0.29704,3372.6,3372.5,0.29703]
[1735401711498,0.4628,3373.0,3372.4,3.6355]
[1735401711696,0.29704,3372.5,3372.4,3.93254]
[1735401711892,0.29704,3372.5,3372.4,3.2078]
[1735401712197,0.29704,3372.5,3372.4,3.50485]
[1735401712898,0.29706,3372.3,3372.2,41.09707]
[1735401713195,0.7426,3372.6,3372.0,3.2078]
[1735401713196,0.9159,3372.4,3372.0,3.2078]
[1735401713491,0.29708,3372.1,3372.0,3.2078]
[1735401715891,0.29708,3372.1,3372.0,3.50489]
[1735401716092,0.29708,3372.1,3372.0,5.06899916]
[1735401716400,0.29706,3372.4,3372.3,0.29705]
[1735401716604,0.29707,3372.3,3372.2,0.29707]
[1735401717893,0.74259,3372.6,3372.0,44.30488]
[1735401717894,0.29708,3372.1,3372.0,44.30488]
[1735401720696,0.4517,3372.7,3372.0,45.57190916]
[1735401720894,2.30880376,3373.3,3372.6,1.56410916]
[1735401721199,0.297,3373.0,3372.9,3.5048]
[1735401721395,0.297,3373.0,3372.9,3.2078]
[1735401721597,0.297,3373.0,3372.9,3.50481]
[1735401721799,0.297,3373.0,3372.9,44.30481]
[1735401722196,3.19030376,3373.6,3372.9,44.0078]
[1735401722494,0.29699,3373.2,3373.1,0.29698]
[1735401722895,0.297,3373.1,3373.0,0.29699]
[1735401723597,0.74243,3373.4,3372.9,44.0078]
[1735401723901,0.297,3373.0,3372.9,44.0078]
[1735401724303,0.297,3373.0,3372.9,44.30481]
[1735401724506,0.297,3373.0,3372.9,44.0078]
[1735401724799,0.297,3373.0,3372.9,3.2078]
[1735401725408,0.29705,3372.5,3372.4,3.2078]
[1735401725598,3.2078,3372.6,3372.2,0.4422]
[1735401725793,0.29707,3372.2,3372.1,4.65719069]
[1735401727197,0.74261,3372.5,3371.9,41.09709]
[1735401727399,0.29709,3372.0,3371.9,40.8]
[1735401727603,0.4616,3372.1,3371.8,3.2078]
[1735401727803,0.29712,3371.6,3371.5,0.29712]
[1735401728106,0.29712,3371.6,3371.5,41.09712]
[1735401729407,0.8897,3372.0,3371.7,0.29711]
[1735401729600,0.8897,3372.0,3371.5,40.8]
[1735401729803,0.29712,3371.6,3371.5,41.09712]
[1735401730002,0.8897,3372.0,3371.5,40.8]
[1735401730196,0.29712,3371.8,3371.7,0.29711]
[1735401730804,0.29712,3371.8,3371.7,1.86121916]
[1735401731304,3.92225376,3372.4,3372.3,0.29706]
[1735401731305,2.60586376,3372.4,3372.3,0.29706]
[1735401731805,0.29708,3372.2,3372.1,0.29707]
[1735401732506,0.29708,3372.2,3372.1,40.8]
[1735401733307,3.2078,3372.6,3372.3,0.29705]
[1735401733513,0.29706,3372.4,3372.3,1.86115916]
[1735401734714,2.30880376,3372.7,3372.1,40.8]
[1735401735011,0.29707,3372.3,3372.2,0.29706]
[1735401737116,0.29707,3372.2,3372.1,40.8]
[1735401737305,0.29708,3372.1,3372.0,7.86499069]
[1735401737505,0.74988,3372.1,3372.0,7.86499069]
[1735401738611,0.74988,3372.1,3372.0,3.2078]
[1735401739010,0.74988,3372.1,3372.0,3.50489]
[1735401739011,0.29708,3372.1,3372.0,3.50489]
[1735401739615,0.4528,3372.5,3372.0,4.77190916]
[1735401739810,0.29707,3372.3,3372.2,0.29706]
[1735401742519,0.29708,3372.2,3372.1,0.29707]
[1735401742718,0.29708,3372.1,3372.0,5.06898916]
[1735401743015,0.29708,3372.1,3372.0,3.2078]
[1735401743812,0.4351,3372.2,3371.9,4.65719069]
[1735401743813,0.29709,3372.0,3371.9,4.65719069]
[1735401744213,0.29712,3371.6,3371.5,3.95729069]
[1735401745716,0.74285,3371.5,3371.0,0.4328]
[1735401746013,0.29717,3371.1,3371.0,0.4328]
[1735401747717,0.29717,3371.1,3371.0,41.2328]
[1735401748416,0.29717,3371.1,3371.0,40.8]
[1735401748610,0.4351,3371.4,3370.8,0.50939]
[1735401748817,0.29719,3370.9,3370.8,0.50939]
[1735401749321,0.29719,3370.9,3370.8,41.30939]
[1735401751324,0.29719,3370.9,3370.8,0.50939]
[1735401754532,0.53309893,3370.9,3370.8,0.50939]
[1735401757223,0.29719,3370.9,3370.8,0.50939]
[1735401762240,0.74298,3370.8,3369.6,1.56410916]
[1735401762443,0.29727,3369.9,3369.6,1.56410916]
[1735401762641,0.29727,3369.9,3369.8,44.0078]
[1735401768142,0.29727,3369.9,3369.8,40.8]
[1735401769344,0.29725,3370.2,3370.1,0.29724]
[1735401769538,0.29724,3370.3,3370.2,0.29724]
[1735401769734,0.29724,3370.3,3370.2,0.4217]
[1735401774949,0.29724,3370.3,3370.2,0.71894]
[1735401775250,0.29724,3370.3,3370.2,0.4217]
[1735401776447,0.29724,3370.3,3370.2,0.71894]
[1735401777547,0.74302,3370.6,3370.5,0.29721]
[1735401777548,0.29722,3370.6,3370.5,0.29721]
[1735401777850,3.95077,3370.9,3370.8,0.29718]